[Event "*** Titled Tuesday Blitz"]
[Site "Chess.com"]
[Date "2020.04.07"]
[Round "8"]
[White "Vusatiuk_Vladimir"]
[Black "1f3_2g41-0"]
[Result "1-0"]
[WhiteElo "2375"]
[BlackElo "2166"]
[TimeControl "180+1"]
[EndTime "14:34:20 PDT"]
[Termination "Vusatiuk_Vladimir won by checkmate"]

1. e4 {[%clk 0:01:34.4]} 1... c5 {[%clk 0:02:59]} 2. Nf3 {[%clk 0:01:34.7]} 2...
d6 {[%clk 0:02:58]} 3. d4 {[%clk 0:01:35.2]} 3... cxd4 {[%clk 0:02:57.7]} 4.
Qxd4 {[%clk 0:01:36.1]} 4... Nf6 {[%clk 0:02:57.2]} 5. Be2 {[%clk 0:01:36]} 5...
Nc6 {[%clk 0:02:57.4]} 6. Qe3 {[%clk 0:01:35.9]} 6... g6 {[%clk 0:02:52.6]} 7.
O-O {[%clk 0:01:35.9]} 7... Bg7 {[%clk 0:02:53]} 8. c4 {[%clk 0:01:35.8]} 8...
O-O {[%clk 0:02:53]} 9. Nc3 {[%clk 0:01:36.1]} 9... Nd7 {[%clk 0:02:53.2]} 10.
b3 {[%clk 0:01:34.2]} 10... Nc5 {[%clk 0:02:48.3]} 11. Bb2 {[%clk 0:01:32.8]}
11... Bg4 {[%clk 0:02:47.2]} 12. Rfd1 {[%clk 0:01:30.7]} 12... a6 {[%clk
0:02:42.4]} 13. Rac1 {[%clk 0:01:27.3]} 13... Bxf3 {[%clk 0:02:33.5]} 14. Bxf3
{[%clk 0:01:26.1]} 14... Ne6 {[%clk 0:02:29.4]} 15. Bg4 {[%clk 0:01:21.6]} 15...
Ned4 {[%clk 0:02:29]} 16. Kh1 {[%clk 0:01:03.8]} 16... e6 {[%clk 0:02:23.4]} 17.
Ne2 {[%clk 0:00:58.6]} 17... Nxe2 {[%clk 0:02:10.2]} 18. Qxe2 {[%clk 0:00:59.5]}
18... Bxb2 {[%clk 0:02:06.3]} 19. Qxb2 {[%clk 0:01:00.4]} 19... e5 {[%clk
0:02:04.5]} 20. c5 {[%clk 0:00:57.1]} 20... Nd4 {[%clk 0:02:02.6]} 21. cxd6
{[%clk 0:00:52.8]} 21... Qxd6 {[%clk 0:02:03.5]} 22. Rc4 {[%clk 0:00:50.2]}
22... b5 {[%clk 0:02:01.9]} 23. Rc3 {[%clk 0:00:49.4]} 23... f5 {[%clk
0:01:59.3]} 24. exf5 {[%clk 0:00:48.5]} 24... gxf5 {[%clk 0:02:00.2]} 25. Bf3
{[%clk 0:00:46.9]} 25... Rac8 {[%clk 0:01:51.9]} 26. Re3 {[%clk 0:00:45.2]}
26... Qf6 {[%clk 0:01:45.6]} 27. Bd5+ {[%clk 0:00:43.6]} 27... Kh8 {[%clk
0:01:45.2]} 28. Rc3 {[%clk 0:00:36.4]} 28... Qd6 {[%clk 0:01:36.4]} 29. Bb7
{[%clk 0:00:35.6]} 29... Rc7 {[%clk 0:01:33.2]} 30. Rxc7 {[%clk 0:00:29.9]}
30... Qxc7 {[%clk 0:01:34.1]} 31. Bd5 {[%clk 0:00:28.4]} 31... Qc5 {[%clk
0:01:33.2]} 32. Bb7 {[%clk 0:00:22.1]} 32... Qb6 {[%clk 0:01:18.8]} 33. Bd5
{[%clk 0:00:19.3]} 33... Rd8 {[%clk 0:01:19.2]} 34. Bf7 {[%clk 0:00:14.7]} 34...
Qf6 {[%clk 0:01:15.6]} 35. Bh5 {[%clk 0:00:15.1]} 35... Qg5 {[%clk 0:01:15.2]}
36. Be2 {[%clk 0:00:13]} 36... Rc8 {[%clk 0:01:14.3]} 37. Bd3 {[%clk 0:00:12.3]}
37... Rg8 {[%clk 0:01:10.5]} 38. Bf1 {[%clk 0:00:11.6]} 38... Qf4 {[%clk
0:01:08.3]} 39. a4 {[%clk 0:00:11.4]} 39... bxa4 {[%clk 0:01:05.9]} 40. bxa4
{[%clk 0:00:12.3]} 40... Nf3 {[%clk 0:01:01.4]} 41. g3 {[%clk 0:00:10.8]} 41...
Qh6 {[%clk 0:01:01.1]} 42. h3 {[%clk 0:00:10.2]} 42... Qc6 {[%clk 0:01:00.6]}
43. Bg2 {[%clk 0:00:09.7]} 43... Rg7 {[%clk 0:00:50.4]} 44. Rd8+ {[%clk
0:00:09.2]} 44... Rg8 {[%clk 0:00:50.8]} 45. Rd3 {[%clk 0:00:09.7]} 45... Qxa4
{[%clk 0:00:44.2]} 46. Bxf3 {[%clk 0:00:09.9]} 46... Re8 {[%clk 0:00:42.5]} 47.
Re3 {[%clk 0:00:08.7]} 47... Qa5 {[%clk 0:00:38.6]} 48. Bg2 {[%clk 0:00:08.9]}
48... Kg7 {[%clk 0:00:37.7]} 49. Qb7+ {[%clk 0:00:08.4]} 49... Kf6 {[%clk
0:00:38.1]} 50. Qc6+ {[%clk 0:00:08.7]} 50... Re6 {[%clk 0:00:37.7]} 51. Qc8
{[%clk 0:00:08.9]} 51... f4 {[%clk 0:00:35.6]} 52. gxf4 {[%clk 0:00:08.6]} 52...
exf4 {[%clk 0:00:35.3]} 53. Rxe6+ {[%clk 0:00:07.9]} 53... Kg5 {[%clk
0:00:35.1]} 54. Qg8+ {[%clk 0:00:07.3]} 54... Kf5 {[%clk 0:00:35.1]} 55. Be4#
{[%clk 0:00:06.2]} 1-0

[Event "*** Titled Tuesday Blitz"]
[Site "Chess.com"]
[Date "2020.04.07"]
[Round "8"]
[White "PetrolulSah"]
[Black "Qvalda"]
[Result "1-0"]
[WhiteElo "2242"]
[BlackElo "2357"]
[TimeControl "180+1"]
[EndTime "14:34:21 PDT"]
[Termination "PetrolulSah won on time"]

1. d4 {[%clk 0:03:00.9]} 1... g6 {[%clk 0:02:59.4]} 2. c4 {[%clk 0:03:00.2]}
2... Bg7 {[%clk 0:02:59.4]} 3. Nc3 {[%clk 0:03:00.4]} 3... c5 {[%clk 0:02:57.1]}
4. Nf3 {[%clk 0:02:56.7]} 4... cxd4 {[%clk 0:02:56.3]} 5. Nxd4 {[%clk
0:02:56.8]} 5... Nc6 {[%clk 0:02:56.9]} 6. e3 {[%clk 0:02:53.7]} 6... Nf6 {[%clk
0:02:53.3]} 7. g3 {[%clk 0:02:53.7]} 7... Nxd4 {[%clk 0:02:41.7]} 8. exd4 {[%clk
0:02:51.8]} 8... d5 {[%clk 0:02:37.8]} 9. cxd5 {[%clk 0:02:51.7]} 9... Nxd5
{[%clk 0:02:32.4]} 10. Bg2 {[%clk 0:02:50.2]} 10... Be6 {[%clk 0:02:26.5]} 11.
Qa4+ {[%clk 0:02:44.5]} 11... Kf8 {[%clk 0:02:26.4]} 12. O-O {[%clk 0:02:42.2]}
12... h6 {[%clk 0:02:18.8]} 13. Re1 {[%clk 0:02:39.4]} 13... Bf6 {[%clk
0:02:10.4]} 14. Qb5 {[%clk 0:02:31.8]} 14... Nxc3 {[%clk 0:01:53.3]} 15. bxc3
{[%clk 0:02:30.5]} 15... Rc8 {[%clk 0:01:49.5]} 16. Qxb7 {[%clk 0:02:01.1]}
16... Rxc3 {[%clk 0:01:46.5]} 17. Bb2 {[%clk 0:02:00.9]} 17... Rc7 {[%clk
0:01:40.4]} 18. Qb5 {[%clk 0:01:50.1]} 18... Kg7 {[%clk 0:01:32.1]} 19. d5
{[%clk 0:01:44.9]} 19... Bd7 {[%clk 0:01:31.4]} 20. Bxf6+ {[%clk 0:01:43.3]}
20... exf6 {[%clk 0:01:32.3]} 21. Qb2 {[%clk 0:01:38.7]} 21... h5 {[%clk
0:01:23.6]} 22. h4 {[%clk 0:01:27.2]} 22... Bf5 {[%clk 0:01:08]} 23. Rac1 {[%clk
0:01:23.5]} 23... Rxc1 {[%clk 0:01:04.6]} 24. Rxc1 {[%clk 0:01:23.3]} 24... Qb8
{[%clk 0:00:50.9]} 25. Qd4 {[%clk 0:01:19.6]} 25... Qe5 {[%clk 0:00:22.3]} 26.
Qxa7 {[%clk 0:01:15.4]} 26... Rc8 {[%clk 0:00:11.2]} 27. Rxc8 {[%clk 0:01:11.3]}
27... Bxc8 {[%clk 0:00:12.1]} 28. Qa5 {[%clk 0:00:53.8]} 28... Bg4 {[%clk
0:00:11]} 29. Qd2 {[%clk 0:00:49.4]} 29... Qa1+ {[%clk 0:00:10.6]} 30. Kh2
{[%clk 0:00:48.7]} 30... Bd7 {[%clk 0:00:11]} 31. d6 {[%clk 0:00:46.4]} 31...
Qe5 {[%clk 0:00:11]} 32. a4 {[%clk 0:00:35.5]} 32... g5 {[%clk 0:00:09.1]} 33.
hxg5 {[%clk 0:00:24.9]} 33... fxg5 {[%clk 0:00:10]} 34. Qe3 {[%clk 0:00:23.7]}
34... Qxd6 {[%clk 0:00:08.2]} 35. Qxg5+ {[%clk 0:00:23.1]} 35... Kf8 {[%clk
0:00:01.6]} 36. Qd8+ {[%clk 0:00:22.5]} 36... Kg7 {[%clk 0:00:01.6]} 37. Bh3
{[%clk 0:00:20.5]} 37... Qd2 {[%clk 0:00:01.5]} 38. Qxd7 {[%clk 0:00:19.4]}
38... Qxf2+ {[%clk 0:00:01.5]} 39. Bg2 {[%clk 0:00:19.4]} 39... h4 {[%clk
0:00:02.4]} 40. Qg4+ {[%clk 0:00:18]} 40... Kf8 {[%clk 0:00:02]} 41. Qxh4 {[%clk
0:00:18]} 41... f5 {[%clk 0:00:01.3]} 42. Qf4 {[%clk 0:00:17.8]} 1-0

[Event "*** Titled Tuesday Blitz"]
[Site "Chess.com"]
[Date "2020.04.07"]
[Round "8"]
[White "MalyDominator"]
[Black "yawnpawn"]
[Result "1-0"]
[WhiteElo "2248"]
[BlackElo "1748"]
[TimeControl "180+1"]
[EndTime "14:34:24 PDT"]
[Termination "MalyDominator won on time"]

1. e4 {[%clk 0:03:00.9]} 1... c5 {[%clk 0:02:59]} 2. Nf3 {[%clk 0:03:00.4]} 2...
Nc6 {[%clk 0:02:58]} 3. d4 {[%clk 0:02:59.6]} 3... cxd4 {[%clk 0:02:57.3]} 4.
Nxd4 {[%clk 0:03:00.5]} 4... g6 {[%clk 0:02:57.4]} 5. c4 {[%clk 0:02:48.8]} 5...
Bg7 {[%clk 0:02:55.1]} 6. Be3 {[%clk 0:02:48.1]} 6... Nf6 {[%clk 0:02:52.4]} 7.
Nc3 {[%clk 0:02:46.9]} 7... O-O {[%clk 0:02:52.3]} 8. Be2 {[%clk 0:02:46.6]}
8... d6 {[%clk 0:02:51.7]} 9. O-O {[%clk 0:02:46.2]} 9... Bd7 {[%clk 0:02:51.4]}
10. Qd2 {[%clk 0:02:45.4]} 10... Nxd4 {[%clk 0:02:50.7]} 11. Bxd4 {[%clk
0:02:46.3]} 11... Bc6 {[%clk 0:02:51]} 12. f3 {[%clk 0:02:45.5]} 12... Nd7
{[%clk 0:02:49.8]} 13. Be3 {[%clk 0:02:45.8]} 13... a5 {[%clk 0:02:45.4]} 14. b3
{[%clk 0:02:40]} 14... Nc5 {[%clk 0:02:42.7]} 15. Rab1 {[%clk 0:02:39.8]} 15...
Qb6 {[%clk 0:02:41.2]} 16. Rfc1 {[%clk 0:02:39.8]} 16... Rae8 {[%clk 0:02:40.4]}
17. Rc2 {[%clk 0:02:37.6]} 17... Qd8 {[%clk 0:02:37.3]} 18. a3 {[%clk
0:02:30.5]} 18... f5 {[%clk 0:02:01.6]} 19. b4 {[%clk 0:02:20.2]} 19... Na4
{[%clk 0:01:35.2]} 20. Nxa4 {[%clk 0:01:56.2]} 20... Bxa4 {[%clk 0:01:34.5]} 21.
Rcc1 {[%clk 0:01:56.3]} 21... fxe4 {[%clk 0:01:25.9]} 22. Qd5+ {[%clk
0:01:53.2]} 22... e6 {[%clk 0:01:21.6]} 23. Qxe4 {[%clk 0:01:49.7]} 23... Bc6
{[%clk 0:01:19.8]} 24. Qd3 {[%clk 0:01:45.3]} 24... axb4 {[%clk 0:01:18.5]} 25.
axb4 {[%clk 0:01:44.1]} 25... b6 {[%clk 0:01:05.1]} 26. Rd1 {[%clk 0:01:35.6]}
26... d5 {[%clk 0:01:04.9]} 27. b5 {[%clk 0:01:29.3]} 27... Bb7 {[%clk
0:00:58.9]} 28. c5 {[%clk 0:01:25.7]} 28... d4 {[%clk 0:00:55.9]} 29. Bxd4
{[%clk 0:01:18.1]} 29... Bxd4+ {[%clk 0:00:53.5]} 30. Qxd4 {[%clk 0:01:17.4]}
30... Qxd4+ {[%clk 0:00:50.5]} 31. Rxd4 {[%clk 0:01:18.3]} 31... bxc5 {[%clk
0:00:51.4]} 32. Rd7 {[%clk 0:01:17.7]} 32... Bd5 {[%clk 0:00:48.6]} 33. b6
{[%clk 0:01:10.5]} 33... Rb8 {[%clk 0:00:47.7]} 34. Rc7 {[%clk 0:01:07.1]} 34...
Rfc8 {[%clk 0:00:40.6]} 35. Kf2 {[%clk 0:01:03.4]} 35... c4 {[%clk 0:00:31.5]}
36. Ke3 {[%clk 0:00:46.5]} 36... c3 {[%clk 0:00:18.7]} 37. Ba6 {[%clk
0:00:31.9]} 37... Rd8 {[%clk 0:00:16.6]} 38. Rxc3 {[%clk 0:00:29.6]} 38... Ba2
{[%clk 0:00:14.3]} 39. Rb2 {[%clk 0:00:28.4]} 39... Bd5 {[%clk 0:00:12.5]} 40.
Rc7 {[%clk 0:00:28.5]} 40... Ba8 {[%clk 0:00:10.5]} 41. Bd3 {[%clk 0:00:25.3]}
41... Bd5 {[%clk 0:00:08]} 42. b7 {[%clk 0:00:23.4]} 42... Kf8 {[%clk
0:00:01.7]} 43. Rxh7 {[%clk 0:00:21.3]} 43... Ke8 {[%clk 0:00:01.2]} 44. Bb5+
{[%clk 0:00:20.7]} 1-0

[Event "*** Titled Tuesday Blitz"]
[Site "Chess.com"]
[Date "2020.04.07"]
[Round "8"]
[White "Haykos"]
[Black "hermionegrangermagic"]
[Result "0-1"]
[WhiteElo "2581"]
[BlackElo "2487"]
[TimeControl "180+1"]
[EndTime "14:34:26 PDT"]
[Termination "hermionegrangermagic won by checkmate"]

1. e4 {[%clk 0:03:00.9]} 1... c5 {[%clk 0:02:59.2]} 2. Nf3 {[%clk 0:03:00.8]}
2... Nc6 {[%clk 0:02:59.7]} 3. Bb5 {[%clk 0:03:01.2]} 3... d6 {[%clk 0:02:59.6]}
4. O-O {[%clk 0:02:57.5]} 4... Bd7 {[%clk 0:02:59.6]} 5. c3 {[%clk 0:02:58]}
5... a6 {[%clk 0:02:59.8]} 6. Bxc6 {[%clk 0:02:58.6]} 6... Bxc6 {[%clk
0:03:00.7]} 7. Re1 {[%clk 0:02:59.3]} 7... Nf6 {[%clk 0:02:59.4]} 8. d4 {[%clk
0:02:59.8]} 8... cxd4 {[%clk 0:02:58.7]} 9. cxd4 {[%clk 0:03:00]} 9... Bxe4
{[%clk 0:02:58.8]} 10. Bg5 {[%clk 0:03:00.1]} 10... Bd5 {[%clk 0:02:57.4]} 11.
Nc3 {[%clk 0:02:57.3]} 11... Be6 {[%clk 0:02:43.8]} 12. d5 {[%clk 0:02:50.2]}
12... Bd7 {[%clk 0:02:43.5]} 13. Bxf6 {[%clk 0:02:50.6]} 13... gxf6 {[%clk
0:02:43.1]} 14. Nd4 {[%clk 0:02:48.4]} 14... Bg7 {[%clk 0:02:34.9]} 15. Qf3
{[%clk 0:02:48]} 15... O-O {[%clk 0:02:31.3]} 16. Re4 {[%clk 0:02:44]} 16... Qb6
{[%clk 0:02:22]} 17. Rxe7 {[%clk 0:02:30]} 17... Qxd4 {[%clk 0:02:16.5]} 18.
Rxd7 {[%clk 0:02:29.9]} 18... Qd2 {[%clk 0:02:12.9]} 19. Rxd6 {[%clk 0:01:22]}
19... Qxb2 {[%clk 0:02:09.2]} 20. Re1 {[%clk 0:01:22.5]} 20... Rae8 {[%clk
0:02:03.4]} 21. Rxe8 {[%clk 0:01:14.2]} 21... Rxe8 {[%clk 0:01:55.1]} 22. g3
{[%clk 0:01:14.5]} 22... a5 {[%clk 0:01:36.4]} 23. Rd7 {[%clk 0:01:10.9]} 23...
b5 {[%clk 0:01:21.5]} 24. d6 {[%clk 0:00:35.4]} 24... b4 {[%clk 0:01:17.3]} 25.
Nd5 {[%clk 0:00:35.6]} 25... Qxa2 {[%clk 0:01:09]} 26. Ne7+ {[%clk 0:00:33]}
26... Kh8 {[%clk 0:01:04.1]} 27. Nf5 {[%clk 0:00:32.4]} 27... b3 {[%clk
0:00:44.5]} 28. Re7 {[%clk 0:00:10.8]} 28... Rg8 {[%clk 0:00:31.7]} 29. Nxg7
{[%clk 0:00:11.1]} 29... b2 {[%clk 0:00:28]} 30. Qxf6 {[%clk 0:00:01.9]} 30...
b1=Q+ {[%clk 0:00:23.5]} 31. Kg2 {[%clk 0:00:02.4]} 31... Qd5+ {[%clk
0:00:17.3]} 32. Kh3 {[%clk 0:00:02.9]} 32... Qf1+ {[%clk 0:00:12.6]} 33. Kh4
{[%clk 0:00:02.3]} 33... Qfc4+ {[%clk 0:00:09.4]} 34. f4 {[%clk 0:00:02.7]}
34... Qcd4 {[%clk 0:00:05.5]} 35. Nh5+ {[%clk 0:00:02.1]} 35... Qxf6+ {[%clk
0:00:05.3]} 36. Nxf6 {[%clk 0:00:03]} 36... Qxd6 {[%clk 0:00:03.5]} 37. Nxg8
{[%clk 0:00:03.6]} 37... Kxg8 {[%clk 0:00:03.1]} 38. Re5 {[%clk 0:00:04.4]}
38... Qf6+ {[%clk 0:00:02.8]} 39. Kg4 {[%clk 0:00:04.8]} 39... Kf8 {[%clk
0:00:03.4]} 40. Rf5 {[%clk 0:00:05.1]} 40... Qe6 {[%clk 0:00:03.3]} 41. Kg5
{[%clk 0:00:05.4]} 41... Qg6+ {[%clk 0:00:03.1]} 42. Kh4 {[%clk 0:00:06.1]}
42... Qxf5 {[%clk 0:00:04]} 43. g4 {[%clk 0:00:06.8]} 43... Qd7 {[%clk
0:00:04.6]} 44. Kh5 {[%clk 0:00:07.5]} 44... a4 {[%clk 0:00:05.5]} 45. f5 {[%clk
0:00:08.3]} 45... a3 {[%clk 0:00:06.4]} 46. Kh6 {[%clk 0:00:09.1]} 46... a2
{[%clk 0:00:07.3]} 47. g5 {[%clk 0:00:09.6]} 47... a1=Q {[%clk 0:00:08.2]} 48.
h4 {[%clk 0:00:10.5]} 48... Qg7+ {[%clk 0:00:09.1]} 49. Kh5 {[%clk 0:00:10.7]}
49... Qd6 {[%clk 0:00:09.2]} 50. Kg4 {[%clk 0:00:11.6]} 50... Qgd4+ {[%clk
0:00:09]} 51. Kh5 {[%clk 0:00:11.9]} 51... Qg6+ {[%clk 0:00:09.1]} 52. fxg6
{[%clk 0:00:12.1]} 52... fxg6+ {[%clk 0:00:10]} 53. Kh6 {[%clk 0:00:13]} 53...
Qxh4# {[%clk 0:00:10.5]} 0-1

[Event "*** Titled Tuesday Blitz"]
[Site "Chess.com"]
[Date "2020.04.07"]
[Round "8"]
[White "GMNeiksans"]
[Black "iaraldinho"]
[Result "1-0"]
[WhiteElo "2842"]
[BlackElo "2637"]
[TimeControl "180+1"]
[EndTime "14:34:30 PDT"]
[Termination "GMNeiksans won on time"]

1. e4 {[%clk 0:03:00.9]} 1... c5 {[%clk 0:02:59.5]} 2. Nf3 {[%clk 0:03:00.7]}
2... a6 {[%clk 0:02:59.7]} 3. g3 {[%clk 0:03:00]} 3... Nc6 {[%clk 0:02:58.1]} 4.
Bg2 {[%clk 0:02:59.4]} 4... e6 {[%clk 0:02:58.3]} 5. O-O {[%clk 0:02:58.7]} 5...
Nf6 {[%clk 0:02:58.3]} 6. Nc3 {[%clk 0:02:58.3]} 6... d6 {[%clk 0:02:56]} 7. d4
{[%clk 0:02:55.9]} 7... cxd4 {[%clk 0:02:56.9]} 8. Nxd4 {[%clk 0:02:56.7]} 8...
Qc7 {[%clk 0:02:53.2]} 9. Nce2 {[%clk 0:02:51.1]} 9... Bd7 {[%clk 0:02:50.2]}
10. b3 {[%clk 0:02:37.4]} 10... Be7 {[%clk 0:02:48.2]} 11. c4 {[%clk 0:02:34.9]}
11... O-O {[%clk 0:02:47.4]} 12. Bb2 {[%clk 0:02:34.3]} 12... Rad8 {[%clk
0:02:41.7]} 13. Rc1 {[%clk 0:02:33.2]} 13... Qa5 {[%clk 0:02:39.8]} 14. Nc3
{[%clk 0:02:29.4]} 14... Nxd4 {[%clk 0:02:27.6]} 15. Qxd4 {[%clk 0:02:28.9]}
15... Bc6 {[%clk 0:02:27.5]} 16. Rfe1 {[%clk 0:02:24.1]} 16... Ne8 {[%clk
0:02:13.2]} 17. Qd3 {[%clk 0:02:17.2]} 17... Bf6 {[%clk 0:02:10.5]} 18. a3
{[%clk 0:02:11.6]} 18... b5 {[%clk 0:02:07.3]} 19. cxb5 {[%clk 0:02:01.1]} 19...
axb5 {[%clk 0:02:06.5]} 20. b4 {[%clk 0:01:57.4]} 20... Qb6 {[%clk 0:02:01.4]}
21. Rc2 {[%clk 0:01:50.4]} 21... d5 {[%clk 0:01:29.3]} 22. exd5 {[%clk
0:01:43.7]} 22... Bxc3 {[%clk 0:01:28.8]} 23. Qxc3 {[%clk 0:01:36.4]} 23... Bxd5
{[%clk 0:01:28.6]} 24. Bxd5 {[%clk 0:00:54]} 24... Rxd5 {[%clk 0:01:29.5]} 25.
Rd2 {[%clk 0:00:54.4]} 25... Rxd2 {[%clk 0:01:24.3]} 26. Qxd2 {[%clk 0:00:54.6]}
26... Qd6 {[%clk 0:01:13.6]} 27. Qe2 {[%clk 0:00:48.7]} 27... Qa6 {[%clk
0:01:10.1]} 28. Rd1 {[%clk 0:00:34.5]} 28... Nf6 {[%clk 0:01:03.1]} 29. Bxf6
{[%clk 0:00:33.5]} 29... gxf6 {[%clk 0:01:02.6]} 30. Qg4+ {[%clk 0:00:33.1]}
30... Kh8 {[%clk 0:01:01.9]} 31. Qf4 {[%clk 0:00:33.6]} 31... f5 {[%clk
0:00:44.1]} 32. Rd3 {[%clk 0:00:29]} 32... Rc8 {[%clk 0:00:34.3]} 33. Kg2 {[%clk
0:00:28.4]} 33... Qc6+ {[%clk 0:00:32.2]} 34. Kh3 {[%clk 0:00:28.1]} 34... Qa6
{[%clk 0:00:19.7]} 35. Qg5 {[%clk 0:00:24.7]} 35... Qc6 {[%clk 0:00:13.4]} 36.
f3 {[%clk 0:00:21.9]} 36... Qc2 {[%clk 0:00:11.5]} 37. Rd7 {[%clk 0:00:19.2]}
37... Rf8 {[%clk 0:00:07.6]} 38. Rd4 {[%clk 0:00:14.3]} 38... Qb1 {[%clk
0:00:03.5]} 39. Qf6+ {[%clk 0:00:10.9]} 39... Kg8 {[%clk 0:00:03.7]} 40. Qg5+
{[%clk 0:00:11.2]} 40... Kh8 {[%clk 0:00:04]} 41. Qe3 {[%clk 0:00:11.5]} 41...
Qf1+ {[%clk 0:00:02.7]} 42. Kh4 {[%clk 0:00:12]} 1-0

[Event "*** Titled Tuesday Blitz"]
[Site "Chess.com"]
[Date "2020.04.07"]
[Round "8"]
[White "Mikhail_Golubev"]
[Black "BaMBoMaTTo"]
[Result "0-1"]
[WhiteElo "2536"]
[BlackElo "2745"]
[TimeControl "180+1"]
[EndTime "14:34:31 PDT"]
[Termination "BaMBoMaTTo won on time"]

1. e4 {[%clk 0:03:00.9]} 1... c5 {[%clk 0:02:54.7]} 2. Nf3 {[%clk 0:03:00.1]}
2... d6 {[%clk 0:02:55.1]} 3. d4 {[%clk 0:02:59.8]} 3... cxd4 {[%clk 0:02:56]}
4. Nxd4 {[%clk 0:03:00.1]} 4... Nf6 {[%clk 0:02:56.6]} 5. Nc3 {[%clk 0:03:00.7]}
5... a6 {[%clk 0:02:57.3]} 6. Bc4 {[%clk 0:02:59.7]} 6... e6 {[%clk 0:02:57.4]}
7. Bb3 {[%clk 0:02:59.8]} 7... b5 {[%clk 0:02:52.1]} 8. O-O {[%clk 0:02:58.9]}
8... Be7 {[%clk 0:02:45.7]} 9. f4 {[%clk 0:02:56.9]} 9... Bb7 {[%clk 0:02:43.3]}
10. Be3 {[%clk 0:02:54.7]} 10... b4 {[%clk 0:02:43.3]} 11. Na4 {[%clk
0:02:53.2]} 11... Nbd7 {[%clk 0:02:40.4]} 12. f5 {[%clk 0:02:25.9]} 12... e5
{[%clk 0:02:40.6]} 13. Ne6 {[%clk 0:02:25.5]} 13... fxe6 {[%clk 0:02:41.1]} 14.
fxe6 {[%clk 0:02:25.3]} 14... Nf8 {[%clk 0:02:41.6]} 15. Nb6 {[%clk 0:02:05.2]}
15... Bc6 {[%clk 0:02:41.9]} 16. Nd5 {[%clk 0:01:54]} 16... Rb8 {[%clk
0:02:09.3]} 17. c3 {[%clk 0:00:45.3]} 17... bxc3 {[%clk 0:01:52.1]} 18. Ba4
{[%clk 0:00:37.3]} 18... Bb5 {[%clk 0:01:52.3]} 19. bxc3 {[%clk 0:00:32.5]}
19... Nxe6 {[%clk 0:01:51.7]} 20. c4 {[%clk 0:00:30.3]} 20... Bxa4 {[%clk
0:01:35.7]} 21. Qxa4+ {[%clk 0:00:30]} 21... Qd7 {[%clk 0:01:36.2]} 22. Qxa6
{[%clk 0:00:21.3]} 22... O-O {[%clk 0:01:35.7]} 23. Nxe7+ {[%clk 0:00:20.6]}
23... Qxe7 {[%clk 0:01:36.6]} 24. Rad1 {[%clk 0:00:20.1]} 24... Nxe4 {[%clk
0:01:35.9]} 25. Rxf8+ {[%clk 0:00:19.3]} 25... Rxf8 {[%clk 0:01:35.7]} 26. Qc6
{[%clk 0:00:19.5]} 26... Nc3 {[%clk 0:01:29.5]} 27. Re1 {[%clk 0:00:16.3]} 27...
Nxa2 {[%clk 0:01:04.1]} 28. h3 {[%clk 0:00:14.1]} 28... Nb4 {[%clk 0:01:00.4]}
29. Qe4 {[%clk 0:00:12.4]} 29... Nc5 {[%clk 0:00:55.1]} 30. Qb1 {[%clk
0:00:10.5]} 30... Nbd3 {[%clk 0:00:53.8]} 31. Re2 {[%clk 0:00:09.4]} 31... Qh4
{[%clk 0:00:51.1]} 32. Qd1 {[%clk 0:00:07]} 32... Qxc4 {[%clk 0:00:50.4]} 33.
Kh2 {[%clk 0:00:05.5]} 33... e4 {[%clk 0:00:38.3]} 34. Rc2 {[%clk 0:00:05.1]}
34... Qe6 {[%clk 0:00:37]} 35. Bd4 {[%clk 0:00:04.3]} 35... Qf5 {[%clk
0:00:26.3]} 36. Qg1 {[%clk 0:00:03.2]} 36... Qf4+ {[%clk 0:00:26.3]} 37. g3
{[%clk 0:00:01.3]} 37... Qf1 {[%clk 0:00:26]} 38. Qe3 {[%clk 0:00:01]} 38... Qf5
{[%clk 0:00:12.8]} 0-1

[Event "*** Titled Tuesday Blitz"]
[Site "Chess.com"]
[Date "2020.04.07"]
[Round "8"]
[White "silverback96"]
[Black "Federtiu"]
[Result "0-1"]
[WhiteElo "2156"]
[BlackElo "2676"]
[TimeControl "180+1"]
[EndTime "14:34:32 PDT"]
[Termination "Federtiu won by resignation"]

1. d4 {[%clk 0:03:00.2]} 1... g6 {[%clk 0:03:00.9]} 2. c4 {[%clk 0:02:59.6]}
2... Bg7 {[%clk 0:02:59.8]} 3. Nf3 {[%clk 0:03:00.1]} 3... d6 {[%clk 0:02:59.8]}
4. g3 {[%clk 0:02:57.3]} 4... Nf6 {[%clk 0:02:59.4]} 5. Bg2 {[%clk 0:02:56.5]}
5... O-O {[%clk 0:03:00.3]} 6. Nc3 {[%clk 0:02:56.8]} 6... c6 {[%clk 0:03:01.2]}
7. O-O {[%clk 0:02:56.9]} 7... a6 {[%clk 0:03:01.6]} 8. e4 {[%clk 0:02:55.8]}
8... Bg4 {[%clk 0:03:01.5]} 9. Re1 {[%clk 0:02:52.9]} 9... Nfd7 {[%clk
0:02:55.6]} 10. h3 {[%clk 0:02:50.6]} 10... Bxf3 {[%clk 0:02:55.5]} 11. Bxf3
{[%clk 0:02:51.5]} 11... b5 {[%clk 0:02:29.6]} 12. cxb5 {[%clk 0:02:45.7]} 12...
axb5 {[%clk 0:02:30.5]} 13. Bf4 {[%clk 0:02:15.1]} 13... Nb6 {[%clk 0:02:13.1]}
14. e5 {[%clk 0:02:12.1]} 14... d5 {[%clk 0:02:09.1]} 15. e6 {[%clk 0:02:04.8]}
15... fxe6 {[%clk 0:02:09]} 16. Rxe6 {[%clk 0:02:04.1]} 16... Rxf4 {[%clk
0:02:09.5]} 17. gxf4 {[%clk 0:02:02.4]} 17... Qf8 {[%clk 0:02:00.6]} 18. Qe2
{[%clk 0:01:44.7]} 18... Ra7 {[%clk 0:01:45]} 19. Nxb5 {[%clk 0:01:41.5]} 19...
cxb5 {[%clk 0:01:44.9]} 20. Rxb6 {[%clk 0:01:40.3]} 20... Bxd4 {[%clk 0:01:44]}
21. Bxd5+ {[%clk 0:01:33.7]} 21... Kg7 {[%clk 0:01:42.1]} 22. Re6 {[%clk
0:01:33.5]} 22... Qxf4 {[%clk 0:01:16.5]} 23. Re1 {[%clk 0:01:15.7]} 23... Qg5+
{[%clk 0:00:33.8]} 24. Kf1 {[%clk 0:01:11.7]} 24... Qxd5 {[%clk 0:00:19.4]} 25.
Rxe7+ {[%clk 0:01:11.6]} 25... Rxe7 {[%clk 0:00:20.3]} 26. Qxe7+ {[%clk
0:01:12]} 26... Qf7 {[%clk 0:00:20.9]} 27. Qh4 {[%clk 0:01:08.3]} 27... Bf6
{[%clk 0:00:19.8]} 28. Qb4 {[%clk 0:00:56.7]} 28... Qd5 {[%clk 0:00:17.9]} 29.
a4 {[%clk 0:00:49.5]} 29... bxa4 {[%clk 0:00:13.3]} 30. Qxb8 {[%clk 0:00:44.7]}
30... Qh1+ {[%clk 0:00:09.6]} 31. Ke2 {[%clk 0:00:44.8]} 31... Qe4+ {[%clk
0:00:10]} 32. Kf1 {[%clk 0:00:45.2]} 32... Qh1+ {[%clk 0:00:08.2]} 33. Ke2
{[%clk 0:00:45.4]} 33... Qe4+ {[%clk 0:00:08.5]} 34. Kd1 {[%clk 0:00:30.7]}
34... Qd3+ {[%clk 0:00:07.9]} 35. Kc1 {[%clk 0:00:31.3]} 35... Qf5 {[%clk
0:00:04.3]} 36. Qc7+ {[%clk 0:00:28.9]} 36... Kh6 {[%clk 0:00:04.5]} 37. Re2
{[%clk 0:00:19.4]} 37... Bg5+ {[%clk 0:00:03.4]} 38. Kd1 {[%clk 0:00:14.8]}
38... Qb1+ {[%clk 0:00:03.3]} 0-1